bitfinex/quotes_BTCUSD_20241010
["timestamp","ask_amount","ask_price","bid_price","bid_amount"]
[1728549661357,0.09921317,60953.0,60952.0,0.28370734]
[1728549663455,0.05005878,60953.0,60952.0,0.28370734]
[1728549663602,0.002636,60953.0,60952.0,0.28370734]
[1728549663809,0.03035208,60953.0,60952.0,0.28370734]
[1728549664330,0.03035208,60953.0,60952.0,0.18860734]
[1728549665441,0.10412148,60953.0,60952.0,0.18860734]
[1728549665869,0.10412171,60953.0,60952.0,0.18860734]
[1728549666788,0.10412171,60953.0,60952.0,0.3660492]
[1728549666789,0.07955546,60953.0,60952.0,0.3660492]
[1728549667256,0.03035231,60953.0,60952.0,0.3660492]
[1728549667488,0.03035174,60953.0,60952.0,0.3660492]
[1728549669197,0.03035174,60953.0,60952.0,0.3890492]
[1728549669445,0.03035174,60953.0,60952.0,0.3910492]
[1728549669678,0.02935174,60953.0,60952.0,0.3890492]
[1728549669915,0.02935174,60953.0,60952.0,0.3900492]
[1728549670117,0.02935174,60953.0,60952.0,0.3920492]
[1728549670339,0.02935174,60953.0,60952.0,0.3910492]
[1728549670852,0.02935174,60953.0,60952.0,0.3920492]
[1728549671076,0.02934527,60953.0,60952.0,0.3920492]
[1728549671308,0.05705454,60953.0,60952.0,0.3920492]
[1728549674700,0.05705148,60953.0,60952.0,0.3920492]
[1728549678100,0.05704852,60953.0,60952.0,0.3920492]
[1728549678579,0.02933925,60953.0,60952.0,0.3920492]
[1728549679454,0.02933925,60953.0,60952.0,0.3890492]
[1728549679674,0.02933925,60953.0,60952.0,0.3940492]
[1728549679894,0.02933925,60953.0,60952.0,0.3910492]
[1728549680117,0.02933925,60953.0,60952.0,0.3890492]
[1728549680342,0.02933925,60953.0,60952.0,0.3920492]
[1728549680559,0.02933925,60953.0,60952.0,0.3940492]
[1728549697539,0.001636,60953.0,60952.0,0.3940492]
[1728549697797,0.02934555,60953.0,60952.0,0.4940492]
[1728549699026,0.02934555,60953.0,60952.0,0.4920492]
[1728549699271,0.03034555,60953.0,60952.0,0.4960492]
[1728549699516,0.03034555,60953.0,60952.0,0.4930492]
[1728549700044,0.03134555,60953.0,60952.0,0.4980492]
[1728549700762,0.03134555,60953.0,60952.0,0.5000492]
[1728549701005,0.003636,60953.0,60952.0,0.5000492]
[1728549701257,0.03134183,60953.0,60952.0,0.5000492]
[1728549701516,0.05086255,60961.0,60960.0,0.44378286]
[1728549701517,0.001638,60961.0,60960.0,0.44378286]
[1728549701774,0.001638,60961.0,60960.0,0.99934854]
[1728549702030,0.001638,60961.0,60960.0,0.87710586]
[1728549702786,0.002638,60961.0,60960.0,0.88110586]
[1728549703017,0.002638,60961.0,60960.0,0.88310586]
[1728549703258,0.002638,60961.0,60960.0,0.87710586]
[1728549703259,0.001638,60961.0,60960.0,0.87710586]
[1728549703503,0.003638,60961.0,60960.0,0.89510586]
[1728549703995,0.002638,60961.0,60960.0,0.88410586]
[1728549704241,0.003638,60961.0,60960.0,0.89510586]
[1728549705235,0.2483382,60972.0,60971.0,0.19195386]
[1728549705490,0.2483382,60972.0,60971.0,0.31419654]
[1728549705982,0.001638,60973.0,60972.0,0.187009]
[1728549706226,0.001638,60973.0,60972.0,0.19195086]
[1728549707235,0.001638,60973.0,60972.0,0.41419354]
[1728549707493,0.003638,60973.0,60972.0,0.29195086]
[1728549707740,0.001638,60973.0,60972.0,0.29195086]
[1728549708226,0.004638,60973.0,60972.0,0.29195086]
[1728549708737,0.001638,60973.0,60972.0,0.29195086]
[1728549709223,0.001638,60973.0,60972.0,0.41719354]
[1728549709470,0.001638,60973.0,60972.0,0.42119354]
[1728549709728,0.001638,60973.0,60972.0,0.44134207]
[1728549709986,0.001638,60973.0,60972.0,0.44534207]
[1728549710268,0.001638,60973.0,60972.0,0.44134207]
[1728549711275,0.001638,60973.0,60972.0,0.05209039]
[1728549711541,0.001638,60973.0,60966.0,0.00494186]
[1728549711542,0.164013,60971.0,60966.0,0.00494186]
[1728549711786,0.164012,60971.0,60966.0,0.00494186]
[1728549712030,0.164016,60970.0,60966.0,0.02905437]
[1728549712280,0.16083764,60972.0,60966.0,0.00494186]
[1728549712769,0.164012,60971.0,60966.0,0.00494186]
[1728549713010,0.32484764,60972.0,60966.0,0.16896686]
[1728549713243,0.32484764,60972.0,60966.0,0.17596686]
[1728549713489,0.16083764,60972.0,60966.0,0.17196686]
[1728549713735,0.17628561,60971.0,60966.0,0.01194186]
[1728549713984,0.164018,60969.0,60966.0,0.01194186]
[1728549714236,0.01227261,60970.0,60966.0,0.01194186]
[1728549714738,0.01227261,60969.0,60966.0,0.01194186]
[1728549714984,0.01227261,60969.0,60966.0,0.00894186]
[1728549715247,0.01227261,60969.0,60966.0,0.01194186]
[1728549715493,0.01227261,60968.0,60966.0,0.01194186]
[1728549715736,0.01227261,60967.0,60966.0,0.00894186]
[1728549715973,0.01227261,60967.0,60966.0,0.17196686]
[1728549716440,0.01227261,60967.0,60966.0,0.17296686]
[1728549716712,0.01227261,60967.0,60966.0,0.17196686]
[1728549716953,0.01227261,60967.0,60966.0,0.01194186]
[1728549717199,0.01227261,60967.0,60966.0,0.00794186]
[1728549717442,0.01227261,60967.0,60966.0,0.17196686]
[1728549717989,0.01227569,60967.0,60966.0,0.16896686]
[1728549718469,0.01327569,60967.0,60966.0,0.16896686]
[1728549719211,0.01327569,60967.0,60966.0,0.29320954]
[1728549719451,0.01327569,60967.0,60966.0,0.29120954]
[1728549720474,0.01327569,60967.0,60966.0,0.29320954]
[1728549720733,0.01327569,60967.0,60966.0,0.12718454]
[1728549720983,0.001,60967.0,60966.0,0.29120954]
[1728549721233,0.001,60967.0,60966.0,0.00494186]
[1728549721715,0.0132781,60967.0,60966.0,0.00494186]
[1728549722203,0.0132781,60967.0,60963.0,0.00494186]
[1728549722455,0.0950781,60966.0,60963.0,0.00494186]
[1728549722711,0.0122781,60965.0,60963.0,0.00494186]
[1728549723008,0.0828,60966.0,60963.0,0.00494186]
[1728549723009,0.0122781,60964.0,60963.0,0.00494186]
[1728549723236,0.0122781,60964.0,60963.0,0.19197386]
[1728549723757,0.0122781,60964.0,60963.0,0.19497386]
[1728549724274,0.0122781,60964.0,60963.0,0.02794186]
[1728549724502,0.0122781,60964.0,60963.0,0.19397486]
[1728549725011,0.0122781,60964.0,60963.0,0.19197486]
[1728549725254,0.0122781,60964.0,60963.0,0.19397486]
[1728549725510,0.0122781,60964.0,60963.0,0.19697486]
[1728549725754,0.0122781,60964.0,60963.0,0.19497486]
[1728549726030,0.0122781,60964.0,60963.0,0.19197486]
[1728549726319,0.015285,60964.0,60963.0,0.19197486]
[1728549726530,0.017285,60964.0,60963.0,0.19197486]
[1728549726771,0.0172862,60964.0,60963.0,0.187033]
[1728549727506,0.0172862,60964.0,60963.0,0.19197486]
[1728549728760,0.0172862,60964.0,60963.0,0.187033]
[1728549729265,0.0172862,60964.0,60963.0,0.19197486]
[1728549729516,0.0172862,60964.0,60963.0,0.187033]
[1728549729779,0.0172862,60964.0,60963.0,0.19197486]
[1728549730086,0.005,60964.0,60963.0,0.19197486]
[1728549730558,0.01728761,60964.0,60963.0,0.19197486]
[1728549730817,0.02957553,60964.0,60963.0,0.19197486]
[1728549731303,0.02657553,60964.0,60963.0,0.19197486]
[1728549732515,0.02457553,60964.0,60963.0,0.19197486]
[1728549732780,0.02457553,60964.0,60963.0,0.19297486]
[1728549733270,0.02457553,60964.0,60963.0,0.165033]
[1728549733271,0.14681821,60964.0,60963.0,0.165033]
[1728549733520,0.14681821,60964.0,60963.0,0.164033]
[1728549733767,0.02457553,60964.0,60963.0,0.164033]
[1728549734014,0.02457553,60964.0,60963.0,0.166033]
[1728549734270,0.10667553,60964.0,60963.0,0.166033]
[1728549734516,0.10667553,60964.0,60963.0,0.167033]
[1728549735005,0.10667553,60964.0,60963.0,0.166033]
[1728549735252,0.10667553,60964.0,60963.0,0.167033]
[1728549737210,0.10667553,60964.0,60963.0,0.003]
[1728549737450,0.27070653,60964.0,60963.0,0.003]
[1728549737706,0.31983834,60964.0,60963.0,0.003]
[1728549737935,0.27070653,60964.0,60963.0,0.003]
[1728549738164,0.31983834,60964.0,60963.0,0.003]
[1728549738400,0.15580734,60964.0,60963.0,0.003]
[1728549738628,0.10667553,60964.0,60963.0,0.003]
[1728549738850,0.09438792,60964.0,60963.0,0.003]
[1728549739535,0.14351973,60964.0,60963.0,0.003]
[1728549739759,0.09438792,60964.0,60963.0,0.003]
[1728549739988,0.34441716,60964.0,60963.0,0.003]
[1728549740272,0.33212924,60964.0,60963.0,0.003]
[1728549740499,0.16809824,60964.0,60963.0,0.002]
[1728549740728,0.16809824,60964.0,60963.0,0.001]
[1728549740956,0.18209824,60964.0,60963.0,0.001]
[1728549741639,0.46837192,60964.0,60963.0,0.001]
[1728549741867,0.30434092,60964.0,60963.0,0.001]
[1728549742093,0.31634092,60964.0,60963.0,0.002]
[1728549743014,0.31634543,60964.0,60963.0,0.002]
[1728549743958,0.48037643,60964.0,60963.0,0.002]
[1728549744408,0.31634543,60964.0,60963.0,0.002]
[1728549744640,0.48037643,60964.0,60963.0,0.002]
[1728549744876,0.31634543,60964.0,60963.0,0.002]
[1728549745613,0.48037643,60964.0,60963.0,0.002]
[1728549746072,0.31634543,60964.0,60963.0,0.002]
[1728549746320,0.4680714,60964.0,60963.0,0.002]
[1728549746556,0.48037572,60964.0,60963.0,0.002]
[1728549746808,0.23424472,60964.0,60963.0,0.166033]
[1728549747043,0.03830432,60964.0,60963.0,0.166033]
[1728549747272,0.03994032,60964.0,60963.0,0.166033]
[1728549749612,0.21132962,60964.0,60963.0,0.166033]
[1728549753636,0.162183,60964.0,60963.0,0.166033]
[1728549753894,0.03994032,60964.0,60963.0,0.166033]
[1728549754133,0.03994405,60964.0,60963.0,0.166033]
[1728549754636,0.11371491,60964.0,60963.0,0.166033]
[1728549755656,0.03994405,60964.0,60963.0,0.166033]
[1728549755897,0.3098245,60964.0,60963.0,0.166033]
[1728549756134,0.1137313,60964.0,60963.0,0.166033]
[1728549756625,0.13833058,60964.0,60963.0,0.166033]
[1728549756860,0.30988928,60964.0,60963.0,0.166033]
[1728549759981,0.29758123,60964.0,60963.0,0.166033]
[1728549760202,0.30988977,60964.0,60963.0,0.166033]
[1728549763540,0.29588977,60964.0,60963.0,0.165033]
[1728549763680,0.29595729,60964.0,60963.0,0.165033]
[1728549763903,0.19750324,60964.0,60963.0,0.165033]
[1728549764967,0.20950324,60964.0,60963.0,0.166033]
[1728549765379,0.19750324,60964.0,60963.0,0.165033]
[1728549765828,0.20850324,60964.0,60963.0,0.166033]
[1728549766707,0.20850881,60964.0,60963.0,0.166033]
[1728549767359,0.33133834,60964.0,60963.0,0.166033]
[1728549767774,0.33133834,60964.0,60963.0,0.29321754]
[1728549768001,0.08618401,60964.0,60963.0,0.49401754]
[1728549768655,0.03695011,60964.0,60963.0,0.49401754]
[1728549768860,0.02495011,60964.0,60963.0,0.49301754]
[1728549769074,0.01395011,60964.0,60963.0,0.49401754]
[1728549769292,0.01495011,60964.0,60963.0,0.50101754]
[1728549769718,0.01495011,60964.0,60963.0,0.49901754]
[1728549770346,0.01494415,60964.0,60963.0,0.49901754]
[1728549770545,0.01494415,60964.0,60963.0,0.50401754]
[1728549775108,0.01494415,60964.0,60963.0,0.38177486]
[1728549777315,0.002636,60964.0,60963.0,0.38177486]
[1728549778026,0.01493782,60964.0,60963.0,0.38177486]
[1728549779885,0.01493782,60964.0,60963.0,0.30197486]
[1728549781998,0.03462023,60964.0,60963.0,0.30197486]
[1728549782975,0.03461975,60964.0,60963.0,0.30197486]
[1728549786295,0.002636,60964.0,60963.0,0.30197486]
[1728549786534,0.03462,60964.0,60963.0,0.30197486]
[1728549793893,0.03462,60964.0,60963.0,0.29697486]
[1728549794145,0.03462,60964.0,60963.0,0.29997486]
[1728549794616,0.03362,60964.0,60963.0,0.29297486]
[1728549794852,0.03362,60964.0,60963.0,0.29697486]
[1728549796776,0.03362,60964.0,60963.0,0.29297486]
[1728549797022,0.03363381,60964.0,60963.0,0.28997486]
[1728549797263,0.03364244,60964.0,60963.0,0.28997486]
[1728549797747,0.03364244,60964.0,60963.0,0.16897486]
[1728549797993,0.03364244,60964.0,60963.0,0.16997486]
[1728549798684,0.08284372,60964.0,60963.0,0.16997486]
[1728549799161,0.03364244,60964.0,60963.0,0.16897486]
[1728549799647,0.03464244,60964.0,60963.0,0.16897486]
[1728549800352,0.03664244,60964.0,60963.0,0.16897486]
[1728549803590,0.11046929,60964.0,60963.0,0.16897486]
[1728549805027,0.11046929,60964.0,60961.0,0.164856]
[1728549805028,0.20789587,60964.0,60961.0,0.164856]
[1728549805261,0.07383514,60962.0,60961.0,0.164856]
[1728549805494,0.0984358,60963.0,60962.0,0.164036]
[1728549805743,0.13044669,60963.0,60962.0,0.164036]
[1728549806007,0.30140883,60963.0,60962.0,0.164036]
[1728549807192,0.30140883,60963.0,60961.0,0.00575986]
[1728549807457,0.03201089,60963.0,60962.0,0.164036]
[1728549807715,0.13044854,60963.0,60962.0,0.164036]
[1728549807954,0.20393375,60963.0,60962.0,0.164036]
[1728549808469,0.32699287,60963.0,60962.0,0.164036]
[1728549809493,0.32699287,60963.0,60961.0,0.328894]
[1728549809494,0.77410819,60963.0,60961.0,0.000818]
[1728549809736,0.20293375,60962.0,60961.0,0.000818]
[1728549810699,0.30135951,60962.0,60961.0,0.000818]
[1728549810932,0.26935827,60962.0,60961.0,0.000818]
[1728549811162,0.30134945,60962.0,60961.0,0.000818]
[1728549811393,0.3014742,60962.0,60961.0,0.000818]
[1728549811653,0.3014742,60962.0,60961.0,0.001818]
[1728549811910,0.3014742,60962.0,60961.0,0.165857]
[1728549812156,0.52762518,60962.0,60961.0,0.001818]
[1728549814063,0.62602589,60962.0,60961.0,0.001818]
[1728549814291,0.46198989,60962.0,60961.0,0.001818]
[1728549815277,0.46198989,60962.0,60961.0,0.165857]
[1728549815986,0.19282882,60962.0,60961.0,0.164857]
[1728549816250,0.20382882,60962.0,60961.0,0.258257]
[1728549816515,0.09618753,60962.0,60961.0,0.36669886]
[1728549816772,0.04699118,60962.0,60961.0,0.36669886]
[1728549816998,0.04699118,60962.0,60961.0,0.46669886]
[1728549816999,0.04299118,60962.0,60961.0,0.46669886]
[1728549817257,0.05499118,60962.0,60961.0,0.46769886]
[1728549817516,0.04399118,60962.0,60961.0,0.46669886]
[1728549817772,0.03199118,60962.0,60961.0,0.46569886]
[1728549818016,0.03399118,60962.0,60961.0,0.46569886]
[1728549818279,0.002,60962.0,60961.0,0.46569886]
[1728549818758,0.02168001,60962.0,60961.0,0.46569886]
[1728549818993,0.03398001,60962.0,60961.0,0.46669886]
[1728549824126,0.03298001,60962.0,60961.0,0.47269886]
[1728549824345,0.03398001,60962.0,60961.0,0.48169886]
[1728549825839,0.002,60962.0,60961.0,0.48169886]
[1728549826067,0.03397109,60962.0,60961.0,0.48169886]
[1728549826709,0.01429657,60962.0,60961.0,0.48169886]
[1728549836627,0.01429657,60962.0,60961.0,0.6475365]
[1728549837122,0.01428953,60962.0,60961.0,0.6475365]
[1728549837404,0.002,60962.0,60961.0,0.6475365]
[1728549837891,0.001636,60963.0,60962.0,0.34747786]
[1728549838104,0.001636,60963.0,60962.0,0.6313155]
[1728549840068,0.002636,60963.0,60962.0,0.6583155]
[1728549842004,0.002636,60963.0,60962.0,0.78055818]
[1728549844139,0.00238785,60963.0,60962.0,0.78055818]
[1728549855392,0.00238785,60963.0,60962.0,0.78712218]
[1728549855848,0.00238785,60963.0,60962.0,0.49247786]
[1728549856082,0.00238785,60963.0,60962.0,0.41997786]
[1728549856331,0.01468474,60963.0,60962.0,0.29597786]
[1728549856786,0.0343602,60963.0,60962.0,0.29597786]
[1728549857016,0.01468474,60963.0,60962.0,0.29597786]
[1728549857490,0.0343602,60963.0,60962.0,0.29597786]
[1728549857968,0.04666204,60963.0,60962.0,0.29597786]
[1728549858196,0.03336515,60963.0,60962.0,0.28297786]
[1728549858430,0.03436515,60963.0,60962.0,0.19097786]
[1728549859149,0.03436515,60963.0,60962.0,0.21397786]
[1728549859404,0.03436515,60963.0,60962.0,0.19997786]
[1728549859650,0.03436515,60963.0,60962.0,0.20897786]
[1728549860966,0.00238785,60963.0,60962.0,0.20897786]
[1728549861184,0.03435676,60963.0,60962.0,0.20897786]
[1728549863157,0.03435676,60963.0,60962.0,0.19997786]
[1728549863584,0.03435676,60963.0,60962.0,0.20497786]
[1728549863827,0.03335676,60963.0,60962.0,0.19697786]
[1728549864063,0.03335676,60963.0,60962.0,0.20097786]
[1728549867618,0.03335676,60963.0,60962.0,0.19697786]
[1728549867847,0.03335676,60963.0,60962.0,0.20097786]
[1728549868290,0.03335676,60963.0,60962.0,0.19597786]
[1728549868508,0.03335676,60963.0,60962.0,0.19197786]
[1728549868713,0.03335676,60963.0,60962.0,0.19497786]
[1728549870837,0.03335676,60963.0,60962.0,0.19397786]
[1728549871477,0.03335676,60963.0,60962.0,0.19197786]
[1728549873442,0.03335676,60963.0,60962.0,0.19279586]
[1728549874100,0.00138785,60963.0,60962.0,0.31503854]
[1728549874329,0.01368177,60963.0,60962.0,0.31503854]
[1728549876270,0.01368177,60963.0,60962.0,0.31903854]
[1728549876718,0.01368177,60963.0,60962.0,0.32203854]
[1728549877359,0.01368177,60963.0,60962.0,0.31903854]
[1728549877567,0.01368705,60963.0,60962.0,0.19979586]
[1728549880888,0.01368769,60963.0,60962.0,0.19979586]
[1728549882948,0.01368769,60963.0,60962.0,0.19679586]
[1728549883176,0.01368769,60963.0,60962.0,0.19379586]
[1728549883405,0.01368769,60963.0,60962.0,0.19579586]
[1728549884114,0.00138785,60963.0,60962.0,0.19579586]
[1728549884342,0.01369319,60963.0,60962.0,0.19579586]
[1728549886205,0.01369319,60963.0,60962.0,0.000818]
[1728549886443,0.06285899,60963.0,60962.0,0.000818]
[1728549887147,0.06285899,60963.0,60962.0,0.164854]
[1728549887383,0.07085899,60963.0,60962.0,0.165854]
[1728549888347,0.07085899,60963.0,60962.0,0.166854]
[1728549888348,0.07385899,60963.0,60962.0,0.166854]
[1728549891055,0.07386134,60963.0,60962.0,0.166854]
[1728549894243,0.06155365,60963.0,60962.0,0.166854]
[1728549894468,0.07385866,60963.0,60962.0,0.166854]
[1728549895969,0.07386242,60963.0,60962.0,0.166854]
[1728549896260,0.02469286,60963.0,60962.0,0.002818]
[1728549896472,0.09844721,60963.0,60962.0,0.166854]
[1728549897594,0.0861422,60963.0,60962.0,0.166854]
[1728549897801,0.09844656,60963.0,60962.0,0.166854]
[1728549899320,0.02469221,60963.0,60962.0,0.166854]
[1728549900358,0.2904647,60963.0,60962.0,0.166854]
[1728549900782,0.02469212,60963.0,60962.0,0.166854]
[1728549901410,0.12303125,60963.0,60962.0,0.166854]
[1728549901618,0.29044168,60963.0,60962.0,0.166854]
[1728549906372,0.27813741,60963.0,60962.0,0.166854]
[1728549906652,0.29044294,60963.0,60962.0,0.31703854]
[1728549906860,0.02469338,60963.0,60962.0,0.58643854]
[1728549907355,0.02469338,60963.0,60962.0,0.59143854]
[1728549907833,0.01369338,60963.0,60962.0,0.58943854]
[1728549908327,0.01369338,60963.0,60962.0,0.59643854]
[1728549908560,0.01369338,60963.0,60962.0,0.58743854]
[1728549908808,0.01369338,60963.0,60962.0,0.59543854]
[1728549909049,0.01469338,60963.0,60962.0,0.48319586]
[1728549909526,0.0146837,60963.0,60962.0,0.47219586]
[1728549910006,0.0146837,60963.0,60962.0,0.48319586]
[1728549910466,0.0136837,60963.0,60962.0,0.47319586]
[1728549910716,0.0146837,60963.0,60962.0,0.48219586]
[1728549911162,0.0136837,60963.0,60962.0,0.46219586]
[1728549911444,0.0146837,60963.0,60962.0,0.47819586]
[1728549911890,0.00238785,60963.0,60962.0,0.47819586]
[1728549912132,0.01467697,60963.0,60962.0,0.47819586]
[1728549912644,0.01467697,60963.0,60962.0,0.6440335]
[1728549912848,0.0146755,60963.0,60962.0,0.6440335]
[1728549916146,0.01467094,60963.0,60962.0,0.6440335]
[1728549916650,0.00238785,60963.0,60962.0,0.6440335]
[1728549917353,0.00238785,60963.0,60962.0,0.6370335]
[1728549917354,0.00138785,60963.0,60962.0,0.6370335]
[1728549917577,0.00238785,60963.0,60962.0,0.6460335]
[1728549917808,0.00238785,60963.0,60962.0,0.6370335]
[1728549918039,0.00238785,60963.0,60962.0,0.76927618]
[1728549921124,0.00238785,60963.0,60962.0,0.6470335]
[1728549927731,0.00238785,60963.0,60962.0,0.6420335]
[1728549927975,0.00238785,60963.0,60962.0,0.6470335]
[1728549929990,0.00238785,60963.0,60962.0,0.48119586]
[1728549930235,0.00238785,60963.0,60962.0,0.60343854]
[1728549930726,0.01467182,60963.0,60962.0,0.60343854]
[1728549932635,0.3047145,60963.0,60962.0,0.019818]
[1728549932895,0.82771852,60963.0,60962.0,0.019818]
[1728549933423,1.00315745,60963.0,60962.0,0.009818]
[1728549933681,1.15051893,60963.0,60962.0,0.009818]
[1728549933924,0.16406,60953.0,60952.0,0.000818]
[1728549934163,0.61794032,60953.0,60952.0,0.000818]
[1728549934381,0.78527505,60953.0,60952.0,0.000818]
[1728549934664,1.02697096,60953.0,60952.0,0.000818]
[1728549934916,0.90314179,60953.0,60952.0,0.000818]
[1728549935167,0.80492998,60953.0,60952.0,0.001818]
[1728549935415,0.91542703,60953.0,60952.0,0.001818]
[1728549935662,0.92457872,60953.0,60952.0,0.001818]
[1728549935906,1.0227918,60953.0,60952.0,0.001818]
[1728549936149,1.0227918,60953.0,60952.0,0.002818]
[1728549936150,0.93457872,60953.0,60952.0,0.002818]
[1728549936391,1.0327918,60953.0,60952.0,0.002818]
[1728549936649,0.90106423,60953.0,60952.0,0.002818]
[1728549937689,0.82745347,60953.0,60952.0,0.002818]
[1728549938379,0.79551457,60953.0,60952.0,0.002818]
[1728549938616,0.84456064,60953.0,60952.0,0.002818]
[1728549938831,0.87643584,60953.0,60952.0,0.002818]
[1728549939601,0.82738977,60953.0,60952.0,0.002818]
[1728549941712,0.82734364,60953.0,60952.0,0.002818]
[1728549942679,0.85304956,60953.0,60952.0,0.002818]
[1728549943732,0.90207192,60953.0,60952.0,0.002818]
[1728549943973,0.9265831,60953.0,60952.0,0.002818]
[1728549944755,0.9285831,60953.0,60952.0,0.002818]
[1728549944851,0.89475403,60953.0,60952.0,0.002818]
[1728549945074,1.10376455,60953.0,60952.0,0.002818]
[1728549945301,1.12133842,60953.0,60952.0,0.002818]
[1728549945531,0.85302803,60953.0,60952.0,0.002818]
[1728549946445,1.02316167,60953.0,60952.0,0.002818]
[1728549946684,0.92646457,60953.0,60952.0,0.002818]
[1728549947619,0.90075865,60953.0,60952.0,0.002818]
[1728549947851,0.82732211,60953.0,60952.0,0.002818]
[1728549948104,1.09520171,60953.0,60952.0,0.00016743]
[1728549948597,0.82732211,60953.0,60952.0,0.00016743]
[1728549948820,0.90072153,60953.0,60952.0,0.00016743]
[1728549950466,0.82732211,60953.0,60952.0,0.00016743]
[1728549950712,0.87623134,60953.0,60952.0,0.00016743]
[1728549951185,0.8444238,60953.0,60952.0,0.00016743]
[1728549951403,0.87620826,60953.0,60952.0,0.00016743]
[1728549951866,0.90191604,60953.0,60952.0,0.00016743]
[1728549952669,0.85300681,60953.0,60952.0,0.00016743]
[1728549954294,0.85300681,60953.0,60952.0,0.00098543]
[1728549958529,0.911296,60953.0,60952.0,0.00098543]
[1728549958755,0.901296,60953.0,60952.0,0.000818]
[1728549959005,0.915296,60953.0,60952.0,0.000818]
[1728549959267,0.60984225,60953.0,60952.0,0.000818]
[1728549959997,0.53274225,60953.0,60952.0,0.000818]
[1728549962335,0.50703447,60953.0,60952.0,0.000818]
[1728549962621,0.164074,60948.0,60947.0,0.000818]
[1728549962877,0.328128,60952.0,60947.0,0.000818]
[1728549962878,0.16083764,60952.0,60949.0,0.0788]
[1728549963095,0.028,60953.0,60952.0,0.164063]
[1728549963566,0.164056,60955.0,60952.0,0.164063]
[1728549963833,0.328102,60957.0,60952.0,0.164063]
[1728549963834,0.01967897,60954.0,60952.0,0.164063]
[1728549964081,0.16083764,60958.0,60954.0,0.164056]
[1728549964328,0.16405,60957.0,60954.0,0.164056]
[1728549964563,0.32488764,60957.0,60954.0,0.164056]
[1728549964802,0.32488764,60957.0,60953.0,0.0954]
[1728549965026,0.03197053,60956.0,60953.0,0.259458]
[1728549965250,0.03197053,60955.0,60953.0,0.259458]
[1728549965468,0.03197053,60954.0,60953.0,0.259458]
[1728549966415,0.03197053,60954.0,60953.0,0.260458]
[1728549966667,0.05625218,60954.0,60953.0,0.261458]
[1728549966905,0.04395582,60954.0,60953.0,0.260458]
[1728549968022,0.04395582,60954.0,60953.0,0.283458]
[1728549968247,0.05695582,60954.0,60953.0,0.283458]
[1728549968695,0.05695582,60954.0,60953.0,0.360558]
[1728549969226,0.04395582,60954.0,60953.0,0.360558]
[1728549969463,0.03595582,60954.0,60953.0,0.359558]
[1728549969707,0.03595582,60954.0,60953.0,0.36449986]
[1728549969946,0.03895582,60954.0,60953.0,0.36449986]
[1728549971301,0.0192907,60954.0,60953.0,0.36449986]
[1728549971544,0.03192902,60954.0,60953.0,0.36449986]
[1728549971798,0.0132907,60954.0,60953.0,0.36449986]
[1728549972036,0.001,60954.0,60953.0,0.64892443]
[1728549972268,0.00138785,60963.0,60962.0,0.33957786]
[1728549972534,0.00138785,60963.0,60962.0,0.36257786]
[1728549972991,0.01365123,60963.0,60962.0,0.36257786]
[1728549974432,0.00138785,60963.0,60962.0,0.36257786]
[1728549975111,0.00438785,60963.0,60962.0,0.36257786]
[1728549975830,0.01663229,60963.0,60962.0,0.36257786]
[1728549975831,0.00438785,60963.0,60962.0,0.36257786]
[1728549976068,0.01663229,60963.0,60962.0,0.36257786]
[1728549977638,0.01663229,60963.0,60962.0,0.38691155]
[1728549978368,0.00438785,60963.0,60962.0,0.38691155]
[1728549981408,0.00438785,60963.0,60962.0,0.48691155]
[1728549982159,0.00238785,60963.0,60962.0,0.48691155]
[1728549982386,0.00138785,60963.0,60962.0,0.48791155]
[1728549982644,0.00238785,60963.0,60962.0,0.49391155]
[1728549984168,0.00238785,60963.0,60962.0,0.49291155]
[1728549984368,0.00238785,60963.0,60962.0,0.49691155]
[1728549996322,0.00138785,60963.0,60962.0,0.49091155]
[1728549996562,0.00138785,60963.0,60962.0,0.48691155]
[1728549996778,0.00138785,60963.0,60962.0,0.49491155]
[1728549997484,0.00138785,60963.0,60962.0,0.49091155]
[1728549997485,0.02104715,60963.0,60962.0,0.49091155]
[1728549997724,0.02104715,60963.0,60962.0,0.49291155]
[1728549998179,0.02104715,60963.0,60962.0,0.39237786]
[1728549998412,0.02104715,60963.0,60962.0,0.17497786]
[1728549999339,0.02104715,60963.0,60962.0,0.17097786]
[1728549999574,0.02104715,60963.0,60962.0,0.16897786]
[1728549999807,0.02104715,60963.0,60962.0,0.19397786]
[1728550000012,0.02104715,60963.0,60962.0,0.19197786]
[1728550000481,0.02504715,60963.0,60962.0,0.19197786]
[1728550000702,0.03004715,60963.0,60962.0,0.19297786]
[1728550003116,0.02104715,60963.0,60962.0,0.19197786]
[1728550003339,0.02804715,60963.0,60962.0,0.19197786]
[1728550003809,0.02407722,60963.0,60962.0,0.19197786]
[1728550004034,0.02607722,60963.0,60962.0,0.19197786]
[1728550004236,0.02907722,60963.0,60962.0,0.19197786]
[1728550004737,0.02907722,60963.0,60962.0,0.00494186]
[1728550005692,0.02907722,60963.0,60962.0,0.164036]
[1728550005932,0.31546359,60963.0,60958.0,0.164045]
[1728550006153,0.01968937,60962.0,60958.0,0.164045]
[1728550006425,0.01968937,60961.0,60959.0,0.164044]
[1728550006640,0.01968937,60960.0,60959.0,0.164044]
[1728550006868,0.12374022,60963.0,60959.0,0.164044]
[1728550007103,0.12374022,60963.0,60961.0,0.00494186]
[1728550007314,0.01968519,60962.0,60961.0,0.00494186]
[1728550007532,0.01968519,60962.0,60959.0,0.164044]
[1728550007770,0.12374022,60963.0,60958.0,0.329092]
[1728550008003,0.12374022,60963.0,60960.0,0.00494186]
[1728550008240,0.10714563,60962.0,60960.0,0.00494186]
[1728550008480,0.01968251,60961.0,60960.0,0.00494186]
[1728550009161,0.0773,60960.0,60959.0,0.002]
[1728550009381,0.09698251,60960.0,60958.0,0.16898786]
[1728550009621,0.01968251,60959.0,60958.0,0.16898786]
[1728550009865,0.01968251,60959.0,60958.0,0.164046]
[1728550010107,0.0773,60960.0,60957.0,0.00494186]
[1728550010327,0.0773,60960.0,60959.0,0.002]
[1728550010766,0.0773,60960.0,60958.0,0.164046]
[1728550010767,0.09697606,60960.0,60958.0,0.164046]
[1728550011001,0.01967606,60959.0,60958.0,0.168046]
[1728550011230,0.01967606,60959.0,60958.0,0.001]
[1728550011963,0.06880475,60959.0,60958.0,0.001]
[1728550012477,0.068827,60959.0,60958.0,0.001]
[1728550012720,0.31938304,60959.0,60950.0,0.049561]
[1728550012957,0.12235237,60953.0,60950.0,0.213629]
[1728550013184,0.14202843,60953.0,60950.0,0.213629]
[1728550013405,0.12235237,60953.0,60950.0,0.164068]
[1728550013636,0.14201816,60953.0,60950.0,0.164068]
[1728550013864,0.14201816,60953.0,60952.0,0.001818]